[Event "Late-Titled-Tuesday-Blitz-September-26-2023"]
[Site "Chess.com"]
[Date "2023.09.26"]
[Round "4"]
[White "RichardLeyvaP"]
[Black "Kostukov_Alex"]
[Result "1-0"]
[WhiteElo "2635"]
[BlackElo "2416"]
[TimeControl "180+1"]
[EndTime "14:39:08 PDT"]
[Termination "RichardLeyvaP won by resignation"]

1. e4 {[%clk 0:02:59.5]} 1... c5 {[%clk 0:02:59.4]} 2. Nf3 {[%clk 0:02:59]} 2...
g6 {[%clk 0:02:59.8]} 3. d4 {[%clk 0:02:59.4]} 3... cxd4 {[%clk 0:03:00.1]} 4.
Nxd4 {[%clk 0:03:00.3]} 4... Bg7 {[%clk 0:03:00.3]} 5. Be2 {[%clk 0:03:00.3]}
5... Nc6 {[%clk 0:03:00.2]} 6. Nb3 {[%clk 0:03:00.4]} 6... Nf6 {[%clk
0:02:59.8]} 7. Nc3 {[%clk 0:03:00.4]} 7... O-O {[%clk 0:02:59.3]} 8. O-O {[%clk
0:03:00.6]} 8... a5 {[%clk 0:02:58.8]} 9. a4 {[%clk 0:03:00.4]} 9... Nb4 {[%clk
0:02:59]} 10. Re1 {[%clk 0:03:00]} 10... d5 {[%clk 0:02:58.6]} 11. e5 {[%clk
0:03:00.4]} 11... Ne4 {[%clk 0:02:54.5]} 12. Bf4 {[%clk 0:02:24]} 12... Bf5
{[%clk 0:02:45.7]} 13. Nd4 {[%clk 0:02:15.9]} 13... e6 {[%clk 0:02:16.4]} 14.
Nxe4 {[%clk 0:01:59.5]} 14... Bxe4 {[%clk 0:01:59.9]} 15. f3 {[%clk 0:01:58.2]}
15... Bf5 {[%clk 0:01:59.3]} 16. c3 {[%clk 0:01:11.1]} 16... Nc6 {[%clk
0:01:52.6]} 17. Bf1 {[%clk 0:01:09.6]} 17... Nxd4 {[%clk 0:01:47.4]} 18. Qxd4
{[%clk 0:01:07.4]} 18... g5 {[%clk 0:01:47.5]} 19. Bg3 {[%clk 0:01:03.2]} 19...
f6 {[%clk 0:01:36.3]} 20. exf6 {[%clk 0:01:01.8]} 20... Qxf6 {[%clk 0:01:33.4]}
21. Be5 {[%clk 0:01:01.6]} 21... Qg6 {[%clk 0:01:33.3]} 22. Rad1 {[%clk
0:00:47.3]} 22... g4 {[%clk 0:01:24.5]} 23. fxg4 {[%clk 0:00:39.7]} 23... Bxg4
{[%clk 0:01:21.6]} 24. Bxg7 {[%clk 0:00:35.8]} 24... Qxg7 {[%clk 0:01:21.3]} 25.
Qxg7+ {[%clk 0:00:35.8]} 25... Kxg7 {[%clk 0:01:21.7]} 26. Rd4 {[%clk
0:00:36.7]} 26... Bf5 {[%clk 0:01:18]} 27. Bd3 {[%clk 0:00:31.4]} 27... Bxd3
{[%clk 0:01:16.3]} 28. Rxd3 {[%clk 0:00:31.7]} 28... Rf6 {[%clk 0:01:16.8]} 29.
Rde3 {[%clk 0:00:24.2]} 29... Kf7 {[%clk 0:01:16.5]} 30. Rf1 {[%clk 0:00:12.4]}
30... Rc8 {[%clk 0:01:07.4]} 31. Rxf6+ {[%clk 0:00:10.2]} 31... Kxf6 {[%clk
0:01:07.5]} 32. Rf3+ {[%clk 0:00:09.8]} 32... Kg6 {[%clk 0:01:03.9]} 33. Re3
{[%clk 0:00:09.4]} 33... Kf6 {[%clk 0:01:03.4]} 34. Rf3+ {[%clk 0:00:09.8]}
34... Kg6 {[%clk 0:01:03]} 35. Rg3+ {[%clk 0:00:08.5]} 35... Kf6 {[%clk
0:00:59.6]} 36. Rh3 {[%clk 0:00:08.7]} 36... Rc7 {[%clk 0:00:59]} 37. Kf2 {[%clk
0:00:08]} 37... Kg6 {[%clk 0:00:56.7]} 38. Ke3 {[%clk 0:00:07.2]} 38... Rc4
{[%clk 0:00:54.8]} 39. Rg3+ {[%clk 0:00:07.4]} 39... Kf6 {[%clk 0:00:54.8]} 40.
Rh3 {[%clk 0:00:07.5]} 40... Kg7 {[%clk 0:00:53.2]} 41. Rg3+ {[%clk 0:00:07.8]}
41... Kh8 {[%clk 0:00:51.5]} 42. Kd3 {[%clk 0:00:08.2]} 42... Rxa4 {[%clk
0:00:51.2]} 43. Re3 {[%clk 0:00:08.4]} 43... Ra2 {[%clk 0:00:48.8]} 44. Kc2
{[%clk 0:00:08.5]} 44... Ra4 {[%clk 0:00:45.2]} 45. Rxe6 {[%clk 0:00:08]} 45...
Rg4 {[%clk 0:00:44.7]} 46. g3 {[%clk 0:00:08.3]} 46... Rg6 {[%clk 0:00:25.4]}
47. Rxg6 {[%clk 0:00:07.5]} 47... hxg6 {[%clk 0:00:25.5]} 48. Kd3 {[%clk
0:00:08.4]} 48... Kg7 {[%clk 0:00:22.6]} 49. Kd4 {[%clk 0:00:09.3]} 49... Kf6
{[%clk 0:00:23.3]} 50. Kxd5 {[%clk 0:00:07.2]} 50... Kf5 {[%clk 0:00:23.8]} 51.
b4 {[%clk 0:00:06.6]} 51... a4 {[%clk 0:00:22.3]} 52. Kc4 {[%clk 0:00:06.9]}
52... b5+ {[%clk 0:00:22]} 53. Kd3 {[%clk 0:00:06.3]} 53... Kg4 {[%clk
0:00:21.8]} 54. c4 {[%clk 0:00:05.8]} 54... bxc4+ {[%clk 0:00:21.8]} 55. Kxc4
{[%clk 0:00:06]} 55... Kf5 {[%clk 0:00:10.5]} 56. b5 {[%clk 0:00:06.3]} 56...
Ke6 {[%clk 0:00:10.7]} 57. Kb4 {[%clk 0:00:06.7]} 57... a3 {[%clk 0:00:11.3]}
58. Kxa3 {[%clk 0:00:07.1]} 1-0

[Event "Late-Titled-Tuesday-Blitz-September-26-2023"]
[Site "Chess.com"]
[Date "2023.09.26"]
[Round "4"]
[White "Berardino"]
[Black "gabduschew"]
[Result "1-0"]
[WhiteElo "2627"]
[BlackElo "2386"]
[TimeControl "180+1"]
[EndTime "14:39:10 PDT"]
[Termination "Berardino won on time"]

1. e4 {[%clk 0:03:00.9]} 1... Nc6 {[%clk 0:02:58.2]} 2. Nf3 {[%clk 0:02:58.8]}
2... d6 {[%clk 0:02:58.1]} 3. d4 {[%clk 0:02:57.8]} 3... Bg4 {[%clk 0:02:57.5]}
4. d5 {[%clk 0:02:52.7]} 4... Nb8 {[%clk 0:02:57]} 5. c4 {[%clk 0:02:51.8]} 5...
Nf6 {[%clk 0:02:55]} 6. Nc3 {[%clk 0:02:51.4]} 6... c6 {[%clk 0:02:54.8]} 7. Be2
{[%clk 0:02:51.4]} 7... Bxf3 {[%clk 0:02:54.5]} 8. Bxf3 {[%clk 0:02:51.3]} 8...
Nbd7 {[%clk 0:02:54.4]} 9. O-O {[%clk 0:02:50.5]} 9... g6 {[%clk 0:02:54.1]} 10.
Bf4 {[%clk 0:02:38.1]} 10... Bg7 {[%clk 0:02:53]} 11. Qd2 {[%clk 0:02:36]} 11...
O-O {[%clk 0:02:51.9]} 12. Rfe1 {[%clk 0:02:35.3]} 12... Ne8 {[%clk 0:02:41]}
13. Rad1 {[%clk 0:02:21.6]} 13... Qa5 {[%clk 0:02:38.9]} 14. Be2 {[%clk
0:02:04.6]} 14... Rc8 {[%clk 0:02:01.1]} 15. Rc1 {[%clk 0:01:53.5]} 15... Ne5
{[%clk 0:01:37.5]} 16. b3 {[%clk 0:01:53.3]} 16... a6 {[%clk 0:01:35.1]} 17. h3
{[%clk 0:01:46.2]} 17... c5 {[%clk 0:01:31.2]} 18. a4 {[%clk 0:01:25.2]} 18...
Rb8 {[%clk 0:01:26.4]} 19. Bf1 {[%clk 0:01:19.6]} 19... e6 {[%clk 0:01:20.1]}
20. Bh6 {[%clk 0:00:37.1]} 20... Qd8 {[%clk 0:01:14.7]} 21. Bxg7 {[%clk
0:00:37]} 21... Kxg7 {[%clk 0:01:14.7]} 22. f4 {[%clk 0:00:36.1]} 22... Nd7
{[%clk 0:01:14.1]} 23. Rcd1 {[%clk 0:00:35.5]} 23... e5 {[%clk 0:01:05.8]} 24.
g3 {[%clk 0:00:26]} 24... Qf6 {[%clk 0:01:00.6]} 25. Kh2 {[%clk 0:00:21.7]}
25... Nc7 {[%clk 0:00:59.2]} 26. Bd3 {[%clk 0:00:19.8]} 26... Rbe8 {[%clk
0:00:40.7]} 27. Rf1 {[%clk 0:00:19.9]} 27... exf4 {[%clk 0:00:38.8]} 28. gxf4
{[%clk 0:00:19.5]} 28... Qh4 {[%clk 0:00:37.6]} 29. Rf3 {[%clk 0:00:16.4]} 29...
Re7 {[%clk 0:00:32]} 30. Rg1 {[%clk 0:00:16.5]} 30... Ne8 {[%clk 0:00:30.1]} 31.
Rg4 {[%clk 0:00:10]} 31... Qh6 {[%clk 0:00:28.4]} 32. Qg2 {[%clk 0:00:09.1]}
32... Nef6 {[%clk 0:00:23.8]} 33. Rg5 {[%clk 0:00:08.4]} 33... Rfe8 {[%clk
0:00:20.1]} 34. Rf1 {[%clk 0:00:07.4]} 34... Nh5 {[%clk 0:00:17]} 35. Qg4 {[%clk
0:00:06.2]} 35... Ndf6 {[%clk 0:00:15.6]} 36. Qg2 {[%clk 0:00:05.7]} 36... Kh8
{[%clk 0:00:12.9]} 37. Kh1 {[%clk 0:00:04.3]} 37... Qg7 {[%clk 0:00:11.7]} 38.
Kh2 {[%clk 0:00:04.8]} 38... Nd7 {[%clk 0:00:07.1]} 39. Ne2 {[%clk 0:00:04.4]}
39... Qb2 {[%clk 0:00:05.4]} 40. Ng3 {[%clk 0:00:04]} 40... Qxg2+ {[%clk
0:00:03.6]} 41. Kxg2 {[%clk 0:00:04.7]} 41... Nxg3 {[%clk 0:00:03]} 42. Rxg3
{[%clk 0:00:04.7]} 42... Nf6 {[%clk 0:00:03.2]} 43. e5 {[%clk 0:00:04.6]} 43...
dxe5 {[%clk 0:00:02.7]} 44. fxe5 {[%clk 0:00:05]} 44... Nh5 {[%clk 0:00:03.5]}
45. Re3 {[%clk 0:00:04.6]} 45... Rxe5 {[%clk 0:00:03.2]} 46. Rxe5 {[%clk
0:00:05.2]} 46... Rxe5 {[%clk 0:00:03.3]} 47. Rxf7 {[%clk 0:00:05.9]} 47... Re3
{[%clk 0:00:03.8]} 48. Bf1 {[%clk 0:00:05.4]} 48... Kg8 {[%clk 0:00:03.6]} 49.
Rxb7 {[%clk 0:00:05]} 49... Nf4+ {[%clk 0:00:03.3]} 50. Kf2 {[%clk 0:00:05]}
50... Rc3 {[%clk 0:00:02.9]} 51. d6 {[%clk 0:00:05]} 51... Kf8 {[%clk
0:00:02.2]} 52. Rb8+ {[%clk 0:00:04.8]} 52... Kf7 {[%clk 0:00:01.4]} 53. d7
{[%clk 0:00:05.5]} 1-0

[Event "Late-Titled-Tuesday-Blitz-September-26-2023"]
[Site "Chess.com"]
[Date "2023.09.26"]
[Round "4"]
[White "K_alena13"]
[Black "Haykoooo0o"]
[Result "0-1"]
[WhiteElo "2198"]
[BlackElo "2468"]
[TimeControl "180+1"]
[EndTime "14:39:11 PDT"]
[Termination "Haykoooo0o won by resignation"]

1. Nf3 {[%clk 0:03:00.9]} 1... d5 {[%clk 0:02:46.1]} 2. d4 {[%clk 0:02:59.5]}
2... Nf6 {[%clk 0:02:45.8]} 3. c4 {[%clk 0:02:58.9]} 3... c6 {[%clk 0:02:45.7]}
4. Nc3 {[%clk 0:02:58.3]} 4... e6 {[%clk 0:02:45.7]} 5. e3 {[%clk 0:02:56.3]}
5... Nbd7 {[%clk 0:02:45.5]} 6. Bd3 {[%clk 0:02:54]} 6... Bd6 {[%clk 0:02:46]}
7. O-O {[%clk 0:02:53.4]} 7... Qe7 {[%clk 0:02:46.6]} 8. e4 {[%clk 0:02:44.7]}
8... dxc4 {[%clk 0:02:45.3]} 9. Bxc4 {[%clk 0:02:43]} 9... e5 {[%clk 0:02:46.2]}
10. b3 {[%clk 0:02:32.2]} 10... O-O {[%clk 0:02:44.9]} 11. Bb2 {[%clk
0:02:29.5]} 11... exd4 {[%clk 0:02:41.7]} 12. Nxd4 {[%clk 0:02:17.1]} 12... Ne5
{[%clk 0:02:24]} 13. Be2 {[%clk 0:02:07.1]} 13... Rd8 {[%clk 0:02:19.9]} 14. Qc1
{[%clk 0:01:47.9]} 14... Neg4 {[%clk 0:02:14.5]} 15. Bxg4 {[%clk 0:01:03.6]}
15... Nxg4 {[%clk 0:01:41.7]} 16. Nf3 {[%clk 0:01:00.3]} 16... Ne5 {[%clk
0:01:36.7]} 17. Nxe5 {[%clk 0:00:44.8]} 17... Bxe5 {[%clk 0:01:35.7]} 18. Qe3
{[%clk 0:00:39.5]} 18... Be6 {[%clk 0:01:34.3]} 19. Rad1 {[%clk 0:00:36.6]}
19... b6 {[%clk 0:01:24.5]} 20. f4 {[%clk 0:00:31.7]} 20... Bd6 {[%clk
0:01:24.5]} 21. Kh1 {[%clk 0:00:27.5]} 21... Bc5 {[%clk 0:01:24.1]} 22. Qg3
{[%clk 0:00:24.2]} 22... f6 {[%clk 0:01:23]} 23. e5 {[%clk 0:00:17.5]} 23... f5
{[%clk 0:01:22.6]} 24. Qf3 {[%clk 0:00:12.9]} 24... Qc7 {[%clk 0:01:16.4]} 25.
Ne2 {[%clk 0:00:11.6]} 25... Bd5 {[%clk 0:01:10.2]} 26. Qh3 {[%clk 0:00:09.9]}
26... Qd7 {[%clk 0:01:08]} 27. Qh5 {[%clk 0:00:08.8]} 27... Qf7 {[%clk
0:01:06.3]} 28. Qxf7+ {[%clk 0:00:08.1]} 28... Kxf7 {[%clk 0:01:06.9]} 29. Ng3
{[%clk 0:00:08.2]} 29... g6 {[%clk 0:01:06.9]} 30. h3 {[%clk 0:00:07.6]} 30...
Ke6 {[%clk 0:01:07]} 31. Kh2 {[%clk 0:00:07.9]} 31... Rd7 {[%clk 0:01:05.1]} 32.
Ne2 {[%clk 0:00:07.8]} 32... Rad8 {[%clk 0:00:58.3]} 33. Nd4+ {[%clk 0:00:06.3]}
33... Bxd4 {[%clk 0:00:58.6]} 34. Rxd4 {[%clk 0:00:06.9]} 34... c5 {[%clk
0:00:58.6]} 35. Rd2 {[%clk 0:00:06.3]} 35... Be4 {[%clk 0:00:49.6]} 36. Rxd7
{[%clk 0:00:06]} 36... Rxd7 {[%clk 0:00:49.4]} 37. Rf2 {[%clk 0:00:06.7]} 37...
Rd3 {[%clk 0:00:48.3]} 38. Kg1 {[%clk 0:00:05.9]} 38... h5 {[%clk 0:00:47.8]}
39. Kh2 {[%clk 0:00:05.7]} 39... h4 {[%clk 0:00:47.1]} 40. Re2 {[%clk
0:00:05.9]} 40... b5 {[%clk 0:00:46.7]} 41. Rf2 {[%clk 0:00:06]} 41... a5 {[%clk
0:00:46.7]} 42. Re2 {[%clk 0:00:05.6]} 42... Kd5 {[%clk 0:00:45.5]} 43. Kg1
{[%clk 0:00:05.7]} 43... c4 {[%clk 0:00:39.9]} 44. bxc4+ {[%clk 0:00:05.6]}
44... bxc4 {[%clk 0:00:40.4]} 45. Kf2 {[%clk 0:00:05.7]} 45... c3 {[%clk
0:00:40.5]} 46. Ba3 {[%clk 0:00:05.1]} 46... a4 {[%clk 0:00:35.1]} 47. Bc1
{[%clk 0:00:04.7]} 47... Rg3 {[%clk 0:00:32.1]} 48. Ke1 {[%clk 0:00:04.3]} 48...
Rxg2 {[%clk 0:00:31.3]} 49. Rxg2 {[%clk 0:00:04.1]} 49... Bxg2 {[%clk
0:00:32.2]} 50. Ke2 {[%clk 0:00:03.6]} 50... Bxh3 {[%clk 0:00:28.5]} 51. Kd3
{[%clk 0:00:03.8]} 51... Bg2 {[%clk 0:00:28.7]} 52. Be3 {[%clk 0:00:03.6]} 52...
c2 {[%clk 0:00:18.3]} 53. Kxc2 {[%clk 0:00:03.5]} 53... Ke4 {[%clk 0:00:18.9]}
54. Kd2 {[%clk 0:00:02.2]} 54... Kd5 {[%clk 0:00:17.9]} 55. Kd3 {[%clk
0:00:01.8]} 55... h3 {[%clk 0:00:17.4]} 56. Bg1 {[%clk 0:00:01.9]} 56... Be4+
{[%clk 0:00:18.2]} 57. Kc3 {[%clk 0:00:01.1]} 57... Bb1 {[%clk 0:00:18.1]} 58.
Bh2 {[%clk 0:00:01.3]} 58... Bxa2 {[%clk 0:00:18.3]} 59. Kb4 {[%clk 0:00:02]}
59... Bb3 {[%clk 0:00:18.6]} 60. Ka3 {[%clk 0:00:02.3]} 60... Ke4 {[%clk
0:00:19.2]} 61. Bg3 {[%clk 0:00:02.8]} 61... Kf3 {[%clk 0:00:19.6]} 62. Bh2
{[%clk 0:00:03]} 62... Kg2 {[%clk 0:00:20.2]} 63. e6 {[%clk 0:00:03.1]} 63...
Bxe6 {[%clk 0:00:19.7]} 64. Kxa4 {[%clk 0:00:03.6]} 64... Kxh2 {[%clk
0:00:19.7]} 65. Kb4 {[%clk 0:00:03.8]} 65... Kg3 {[%clk 0:00:20.6]} 0-1

[Event "Late-Titled-Tuesday-Blitz-September-26-2023"]
[Site "Chess.com"]
[Date "2023.09.26"]
[Round "4"]
[White "Bauman_Guy"]
[Black "mishanick"]
[Result "0-1"]
[WhiteElo "2865"]
[BlackElo "3096"]
[TimeControl "180+1"]
[EndTime "14:39:13 PDT"]
[Termination "mishanick won by resignation"]

1. e4 {[%clk 0:03:00.9]} 1... c5 {[%clk 0:02:55.9]} 2. Nf3 {[%clk 0:03:00.8]}
2... e6 {[%clk 0:02:55.8]} 3. d4 {[%clk 0:02:59.7]} 3... cxd4 {[%clk 0:02:56.7]}
4. Nxd4 {[%clk 0:03:00.6]} 4... Nc6 {[%clk 0:02:56.4]} 5. Nc3 {[%clk 0:03:01.1]}
5... Nf6 {[%clk 0:02:56.9]} 6. Ndb5 {[%clk 0:03:01]} 6... Bc5 {[%clk 0:02:54.1]}
7. Nd6+ {[%clk 0:03:00.4]} 7... Ke7 {[%clk 0:02:52.8]} 8. Bf4 {[%clk 0:03:00.9]}
8... e5 {[%clk 0:02:48.4]} 9. Nf5+ {[%clk 0:03:01]} 9... Kf8 {[%clk 0:02:48.3]}
10. Bg5 {[%clk 0:03:01.9]} 10... Bb4 {[%clk 0:02:46.5]} 11. Bc4 {[%clk
0:03:01.8]} 11... d5 {[%clk 0:02:45.9]} 12. Bxf6 {[%clk 0:02:59.3]} 12... Qxf6
{[%clk 0:02:43.8]} 13. Bxd5 {[%clk 0:02:58.8]} 13... Bxf5 {[%clk 0:02:43.4]} 14.
exf5 {[%clk 0:02:59.2]} 14... Rd8 {[%clk 0:02:42.2]} 15. O-O {[%clk 0:02:58.2]}
15... Ne7 {[%clk 0:02:21.3]} 16. Ne4 {[%clk 0:02:57.7]} 16... Rxd5 {[%clk
0:01:42.5]} 17. Nxf6 {[%clk 0:02:56.4]} 17... Rxd1 {[%clk 0:01:42.6]} 18. Nxh7+
{[%clk 0:02:36.6]} 18... Rxh7 {[%clk 0:01:42.7]} 19. Rfxd1 {[%clk 0:02:37.5]}
19... Ke8 {[%clk 0:01:36.4]} 20. Rd3 {[%clk 0:01:57.3]} 20... Nxf5 {[%clk
0:01:07.2]} 21. Rb3 {[%clk 0:01:19.2]} 21... Nd4 {[%clk 0:01:07]} 22. Rxb4
{[%clk 0:01:19.2]} 22... Nxc2 {[%clk 0:01:07.5]} 23. Rc4 {[%clk 0:01:19.9]}
23... Nxa1 {[%clk 0:01:07.8]} 24. Rc1 {[%clk 0:01:20.6]} 24... Rh4 {[%clk
0:01:01.2]} 25. Rxa1 {[%clk 0:01:20.2]} 25... Rc4 {[%clk 0:01:01]} 26. Re1
{[%clk 0:01:17.9]} 26... f6 {[%clk 0:01:00.8]} 27. Kf1 {[%clk 0:01:13.5]} 27...
Kd7 {[%clk 0:00:58.3]} 28. b3 {[%clk 0:01:09.9]} 28... Rc5 {[%clk 0:00:51.3]}
29. Rd1+ {[%clk 0:01:06.6]} 29... Ke6 {[%clk 0:00:51.6]} 30. Ke2 {[%clk
0:01:07.5]} 30... a5 {[%clk 0:00:51.9]} 31. h4 {[%clk 0:01:00]} 31... b5 {[%clk
0:00:51]} 32. Rd8 {[%clk 0:00:53.1]} 32... Rc2+ {[%clk 0:00:48.6]} 33. Rd2
{[%clk 0:00:52.8]} 33... Rc1 {[%clk 0:00:26.1]} 34. Rd8 {[%clk 0:00:42.2]} 34...
Ra1 {[%clk 0:00:23.8]} 35. Rd2 {[%clk 0:00:38.1]} 35... Kf5 {[%clk 0:00:23.9]}
36. Kf3 {[%clk 0:00:37.3]} 36... g6 {[%clk 0:00:09.2]} 37. g4+ {[%clk
0:00:31.4]} 37... Ke6 {[%clk 0:00:09.3]} 38. Kg2 {[%clk 0:00:30.5]} 38... a4
{[%clk 0:00:05.6]} 39. bxa4 {[%clk 0:00:29.9]} 39... bxa4 {[%clk 0:00:06.5]} 40.
Re2 {[%clk 0:00:21.6]} 40... Rd1 {[%clk 0:00:03.1]} 41. Re4 {[%clk 0:00:13.6]}
41... a3 {[%clk 0:00:03.7]} 42. Ra4 {[%clk 0:00:12.8]} 42... Rd3 {[%clk
0:00:04.4]} 43. Ra6+ {[%clk 0:00:12.9]} 43... Kf7 {[%clk 0:00:05.1]} 44. f3
{[%clk 0:00:13.1]} 44... f5 {[%clk 0:00:05]} 45. g5 {[%clk 0:00:07.3]} 45...
Rd2+ {[%clk 0:00:04.3]} 46. Kg3 {[%clk 0:00:07.7]} 46... Rxa2 {[%clk 0:00:04.9]}
47. Rf6+ {[%clk 0:00:08.1]} 47... Kg7 {[%clk 0:00:05.3]} 48. Ra6 {[%clk
0:00:09]} 48... f4+ {[%clk 0:00:05.7]} 49. Kh3 {[%clk 0:00:07.7]} 49... Kf7
{[%clk 0:00:06.1]} 50. Rf6+ {[%clk 0:00:07.5]} 50... Kg7 {[%clk 0:00:06.7]} 51.
Ra6 {[%clk 0:00:08.1]} 51... Ra1 {[%clk 0:00:07.2]} 52. Ra7+ {[%clk 0:00:08]}
52... Kg8 {[%clk 0:00:07.2]} 53. Ra6 {[%clk 0:00:07.4]} 53... Kf7 {[%clk
0:00:06.6]} 54. Rf6+ {[%clk 0:00:06.6]} 54... Kg7 {[%clk 0:00:06.9]} 55. Ra6
{[%clk 0:00:05.5]} 55... a2 {[%clk 0:00:07.4]} 56. Kg2 {[%clk 0:00:05.7]} 56...
e4 {[%clk 0:00:07.5]} 57. Ra7+ {[%clk 0:00:05.8]} 57... Kg8 {[%clk 0:00:07.6]}
58. fxe4 {[%clk 0:00:01.6]} 58... f3+ {[%clk 0:00:07.6]} 59. Kxf3 {[%clk
0:00:02.3]} 59... Rf1+ {[%clk 0:00:07.6]} 60. Kg4 {[%clk 0:00:02.8]} 60... a1=Q
{[%clk 0:00:08.5]} 61. Rxa1 {[%clk 0:00:03.1]} 61... Rxa1 {[%clk 0:00:09.4]} 0-1

[Event "Late-Titled-Tuesday-Blitz-September-26-2023"]
[Site "Chess.com"]
[Date "2023.09.26"]
[Round "4"]
[White "EsmeraldasAnderson03"]
[Black "wadsy27"]
[Result "1/2-1/2"]
[WhiteElo "2432"]
[BlackElo "2638"]
[TimeControl "180+1"]
[EndTime "14:39:13 PDT"]
[Termination "Game drawn - insufficient material"]

1. d4 {[%clk 0:03:00.9]} 1... f5 {[%clk 0:02:58]} 2. Bg5 {[%clk 0:03:00]} 2...
g6 {[%clk 0:02:55.8]} 3. e3 {[%clk 0:02:52.1]} 3... Bg7 {[%clk 0:02:55.2]} 4. h4
{[%clk 0:02:51]} 4... Nf6 {[%clk 0:02:54.9]} 5. Be2 {[%clk 0:02:50.7]} 5... h6
{[%clk 0:02:48.1]} 6. Bf4 {[%clk 0:02:49.7]} 6... d6 {[%clk 0:02:43]} 7. Nf3
{[%clk 0:02:47.5]} 7... Be6 {[%clk 0:02:40.1]} 8. c4 {[%clk 0:02:42.5]} 8...
Nbd7 {[%clk 0:02:38.1]} 9. Nc3 {[%clk 0:02:29.9]} 9... c6 {[%clk 0:02:30.3]} 10.
Qc2 {[%clk 0:02:06.6]} 10... Bf7 {[%clk 0:02:26.2]} 11. e4 {[%clk 0:01:51.8]}
11... fxe4 {[%clk 0:02:17.6]} 12. Nxe4 {[%clk 0:01:52.7]} 12... Nxe4 {[%clk
0:02:17.6]} 13. Qxe4 {[%clk 0:01:52.2]} 13... Nf6 {[%clk 0:02:17.5]} 14. Qd3
{[%clk 0:01:49.5]} 14... Qd7 {[%clk 0:02:14.2]} 15. O-O {[%clk 0:01:45.4]} 15...
Qf5 {[%clk 0:02:10.7]} 16. Qxf5 {[%clk 0:01:41.5]} 16... gxf5 {[%clk 0:02:10.3]}
17. Bd3 {[%clk 0:01:41.5]} 17... e6 {[%clk 0:02:03.1]} 18. Rfe1 {[%clk
0:01:40.9]} 18... O-O {[%clk 0:01:54.6]} 19. Bd2 {[%clk 0:01:33.1]} 19... Rae8
{[%clk 0:01:48.9]} 20. Bc3 {[%clk 0:01:32.6]} 20... Bg6 {[%clk 0:01:39.8]} 21.
c5 {[%clk 0:01:31.3]} 21... d5 {[%clk 0:01:33.3]} 22. Ne5 {[%clk 0:01:30.4]}
22... Bh7 {[%clk 0:01:31.2]} 23. f3 {[%clk 0:01:29.6]} 23... f4 {[%clk
0:01:21.3]} 24. Bg6 {[%clk 0:01:20.9]} 24... Re7 {[%clk 0:01:11.4]} 25. b4
{[%clk 0:01:18.3]} 25... Ne8 {[%clk 0:01:00.4]} 26. h5 {[%clk 0:01:12.9]} 26...
Bxe5 {[%clk 0:00:57.3]} 27. Bxh7+ {[%clk 0:01:12.9]} 27... Kxh7 {[%clk
0:00:56.7]} 28. Rxe5 {[%clk 0:01:13.8]} 28... Ng7 {[%clk 0:00:51.1]} 29. Rae1
{[%clk 0:01:12.5]} 29... a6 {[%clk 0:00:49.1]} 30. Bd2 {[%clk 0:01:11.3]} 30...
Ref7 {[%clk 0:00:48.7]} 31. Kh2 {[%clk 0:01:01.5]} 31... Rf5 {[%clk 0:00:48.3]}
32. Rxf5 {[%clk 0:00:59.8]} 32... Rxf5 {[%clk 0:00:46.6]} 33. Re5 {[%clk
0:01:00.3]} 33... Rxh5+ {[%clk 0:00:40.7]} 34. Rxh5 {[%clk 0:00:58.9]} 34...
Nxh5 {[%clk 0:00:41.3]} 35. Kh3 {[%clk 0:00:59.1]} 35... Ng7 {[%clk 0:00:23.2]}
36. Bxf4 {[%clk 0:00:41.9]} 36... Nf5 {[%clk 0:00:23]} 37. Be5 {[%clk
0:00:40.1]} 37... Ne3 {[%clk 0:00:22.1]} 38. a3 {[%clk 0:00:13.5]} 38... Nc2
{[%clk 0:00:21.6]} 39. Bf4 {[%clk 0:00:13.8]} 39... Nxa3 {[%clk 0:00:21.4]} 40.
Bd2 {[%clk 0:00:14.4]} 40... Nb5 {[%clk 0:00:19.1]} 41. Be3 {[%clk 0:00:13.9]}
41... Kg6 {[%clk 0:00:19.3]} 42. Kg4 {[%clk 0:00:14.3]} 42... Nc3 {[%clk
0:00:19.4]} 43. Kf4 {[%clk 0:00:11.8]} 43... Kf6 {[%clk 0:00:19.4]} 44. Kg4
{[%clk 0:00:12.2]} 44... Ne2 {[%clk 0:00:17.8]} 45. Kh5 {[%clk 0:00:11.3]} 45...
e5 {[%clk 0:00:15.3]} 46. dxe5+ {[%clk 0:00:10.3]} 46... Kxe5 {[%clk 0:00:15.7]}
47. Bxh6 {[%clk 0:00:09.4]} 47... d4 {[%clk 0:00:14.4]} 48. g4 {[%clk
0:00:09.7]} 48... d3 {[%clk 0:00:14]} 49. Bd2 {[%clk 0:00:09.3]} 49... Nd4
{[%clk 0:00:13.1]} 50. f4+ {[%clk 0:00:08.5]} 50... Ke6 {[%clk 0:00:10.5]} 51.
f5+ {[%clk 0:00:08.7]} 51... Kf7 {[%clk 0:00:10.4]} 52. Bc3 {[%clk 0:00:08.2]}
52... Nf3 {[%clk 0:00:10.5]} 53. g5 {[%clk 0:00:08.4]} 53... d2 {[%clk
0:00:11.1]} 54. g6+ {[%clk 0:00:09.1]} 54... Kg8 {[%clk 0:00:11.2]} 55. Bxd2
{[%clk 0:00:09.6]} 55... Nxd2 {[%clk 0:00:12.1]} 56. f6 {[%clk 0:00:09.6]} 56...
Ne4 {[%clk 0:00:12.7]} 57. f7+ {[%clk 0:00:08.9]} 57... Kg7 {[%clk 0:00:13.2]}
58. Kg4 {[%clk 0:00:09.3]} 58... Nf6+ {[%clk 0:00:13.1]} 59. Kf5 {[%clk
0:00:09.8]} 59... Nd7 {[%clk 0:00:13.7]} 60. Ke6 {[%clk 0:00:10.5]} 60... Nf8+
{[%clk 0:00:14.3]} 61. Kd6 {[%clk 0:00:11.3]} 61... Nxg6 {[%clk 0:00:14.5]} 62.
Kc7 {[%clk 0:00:12]} 62... Ne5 {[%clk 0:00:14.7]} 63. Kxb7 {[%clk 0:00:12.2]}
63... Nd3 {[%clk 0:00:15.4]} 64. Kxc6 {[%clk 0:00:11.6]} 64... Nxb4+ {[%clk
0:00:15.7]} 65. Kb6 {[%clk 0:00:12]} 65... Kxf7 {[%clk 0:00:15.2]} 66. Ka5
{[%clk 0:00:11.5]} 66... Ke7 {[%clk 0:00:12.7]} 67. Kxb4 {[%clk 0:00:11.1]}
67... Kd7 {[%clk 0:00:13.3]} 68. Ka5 {[%clk 0:00:11.5]} 68... Kc6 {[%clk
0:00:13.9]} 69. Kxa6 {[%clk 0:00:12.1]} 69... Kxc5 {[%clk 0:00:14.4]} 1/2-1/2